bitfinex/quotes_SOLUSD_20250719
["timestamp","ask_amount","ask_price","bid_price","bid_amount"]
[1752889658321,8.96777449,176.54,176.53,39.82]
[1752889658520,6.07443865,176.54,176.48,0.03]
[1752889658717,2.89333584,176.53,176.51,39.82]
[1752889659340,8.55809537,176.53,176.51,39.82]
[1752889659643,5.66447028,176.54,176.52,0.75]
[1752889659825,8.55757565,176.55,176.53,0.72]
[1752889660022,8.55757565,176.55,176.54,39.84]
[1752889660632,5.66283481,176.59,176.54,43.45333584]
[1752889660831,8.55617065,176.59,176.55,3.61333584]
[1752889661036,8.55617065,176.59,176.56,0.72]
[1752889661232,8.55617065,176.59,176.57,39.84]
[1752889661952,2.89333584,176.58,176.57,39.84]
[1752889662248,19.81911853,176.6,176.57,39.84]
[1752889662547,8.55584999,176.6,176.58,0.72]
[1752889664128,5.66251415,176.6,176.58,0.72]
[1752889664331,8.55584999,176.6,176.58,0.72]
[1752889666052,0.06,176.61,176.58,0.72]
[1752889666235,2.89333584,176.6,176.58,0.72]
[1752889666434,0.06,176.61,176.59,0.72]
[1752889666642,0.06,176.61,176.6,39.82]
[1752889666948,0.06,176.61,176.6,40.54]
[1752889670834,0.06,176.61,176.6,43.43333584]
[1752889675626,0.06,176.61,176.6,40.54]
[1752889675830,2.95333584,176.61,176.6,39.82]
[1752889676855,0.06,176.61,176.6,40.54]
[1752889677867,5.72219353,176.61,176.6,40.54]
[1752889678566,8.61552937,176.61,176.6,39.82]
[1752889680119,9.02552937,176.61,176.6,39.82]
[1752889681365,5.72219353,176.61,176.6,39.82]
[1752889681738,8.61552937,176.61,176.6,39.82]
[1752889682441,0.06,176.61,176.6,40.54]
[1752889683530,5.72219353,176.61,176.6,40.54]
[1752889683761,0.06,176.61,176.6,40.54]
[1752889683965,5.72219353,176.61,176.6,40.54]
[1752889684368,0.06,176.61,176.6,40.54]
[1752889685256,5.72219353,176.61,176.6,39.82]
[1752889687364,0.06,176.61,176.6,39.82]
[1752889687599,0.06,176.61,176.6,40.54]
[1752889687961,0.06,176.61,176.6,39.85]
[1752889688553,3.36333584,176.61,176.6,39.85]
[1752889689576,8.61552937,176.61,176.6,39.85]
[1752889690851,5.72219353,176.61,176.6,40.54]
[1752889692080,0.06,176.61,176.6,40.54]
[1752889693892,0.06,176.61,176.6,40.62]
[1752889694995,2.95333584,176.61,176.6,0.03]
[1752889695176,2.95333584,176.61,176.6,39.93]
[1752889695997,3.36333584,176.61,176.6,39.93]
[1752889696298,0.47,176.61,176.6,39.93]
[1752889696505,3.36333584,176.61,176.6,39.93]
[1752889697500,9.02552937,176.61,176.6,39.93]
[1752889697998,8.61552937,176.61,176.6,39.93]
[1752889700503,9.02552937,176.61,176.57,0.03]
[1752889700802,2.89333584,176.58,176.57,0.03]
[1752889701184,3.30333584,176.58,176.57,0.03]
[1752889701383,3.30333584,176.58,176.57,1e-08]
[1752889701699,48.98135565,176.58,176.57,1e-08]
[1752889701899,19.82216684,176.57,176.53,0.03]
[1752889702202,2.89333584,176.54,176.53,0.03]
[1752889702608,29.30333584,176.54,176.53,0.03]
[1752889702903,20.23216684,176.57,176.53,0.03]
[1752889703197,2.89333584,176.54,176.53,0.72]
[1752889703993,45.82216684,176.57,176.53,0.72]
[1752889703994,2.89333584,176.56,176.53,0.72]
[1752889704203,45.82216684,176.57,176.54,0.69]
[1752889704204,22.71550268,176.57,176.54,0.69]
[1752889704379,8.55681208,176.57,176.55,0.69]
[1752889704707,2.89333584,176.56,176.55,0.69]
[1752889705383,2.89333584,176.56,176.53,40.68]
[1752889705598,2.89333584,176.56,176.53,39.99]
[1752889705801,2.89333584,176.56,176.54,0.69]
[1752889706307,19.81992184,176.59,176.54,0.69]
[1752889706487,2.89333584,176.56,176.54,0.69]
[1752889708005,5.66411781,176.55,176.53,39.99]
[1752889708193,5.66411781,176.55,176.53,40.68]
[1752889710005,5.66411781,176.55,176.53,39.99]
[1752889710178,5.66411781,176.55,176.54,0.69]
[1752889710598,14.15708703,176.59,176.54,0.69]
[1752889710802,2.89333584,176.57,176.55,0.69]
[1752889711385,2.89333584,176.57,176.53,43.57333584]
[1752889711709,5.663797,176.56,176.54,0.69]
[1752889711911,5.66356715,176.57,176.54,3.58333584]
[1752889712083,5.66356715,176.57,176.55,0.69]
[1752889712290,5.66356715,176.57,176.55,3.58333584]
[1752889712504,5.66356715,176.57,176.56,0.69]
[1752889712809,5.66320878,176.58,176.56,0.69]
[1752889713109,5.66320878,176.58,176.57,39.94]
[1752889713278,5.66291741,176.59,176.57,40.63]
[1752889713476,5.66291741,176.59,176.58,0.69]
[1752889715910,5.66291741,176.59,176.57,39.94]
[1752889716111,5.66291741,176.59,176.57,40.62]
[1752889718113,2.89333584,176.58,176.57,39.94]
[1752889718283,2.89333584,176.58,176.55,39.9]
[1752889718489,2.89333584,176.57,176.55,39.9]
[1752889719226,2.89333584,176.57,176.55,40.58]
[1752889719910,5.663797,176.56,176.55,40.58]
[1752889720236,8.55713284,176.56,176.55,39.9]
[1752889720604,5.663797,176.56,176.55,40.58]
[1752889723003,5.66356899,176.57,176.55,43.47333584]
[1752889723195,5.66356899,176.57,176.56,0.68]
[1752889723897,23.12559543,176.57,176.53,0.03]
[1752889724105,8.55777449,176.54,176.53,0.03]
[1752889730232,5.66443865,176.54,176.53,0.71]
[1752889730424,5.66443865,176.54,176.53,40.59]
[1752889732620,8.55777449,176.54,176.53,40.59]
[1752889732951,5.66443865,176.54,176.53,40.59]
[1752889733114,8.55777449,176.54,176.53,40.59]
[1752889738462,5.663797,176.56,176.53,40.59]
[1752889738619,5.663797,176.56,176.54,0.68]
[1752889739446,5.663797,176.56,176.55,0.68]
[1752889741140,8.55713284,176.56,176.53,0.03]
[1752889741456,2.89333584,176.54,176.53,0.03]
[1752889742345,3.30333584,176.54,176.53,0.03]
[1752889742850,26.0,176.53,176.52,0.03]
[1752889743023,37.86143121,176.53,176.52,0.03]
[1752889743219,37.86143121,176.53,176.5,0.03]
[1752889743454,5.78667168,176.51,176.5,0.03]
[1752889743944,6.19667168,176.51,176.5,0.03]
[1752889744531,6.19667168,176.51,176.5,1e-08]
[1752889745231,11.86207307,176.51,176.5,1e-08]
[1752889745641,11.86207307,176.51,176.49,1e-08]
[1752889745955,6.19667168,176.5,176.48,1e-08]
[1752889746156,2.89333584,176.49,176.48,1e-08]
[1752889746319,26.0,176.48,176.47,23.6217281]
[1752889746523,29.30333584,176.48,176.46,0.03]
[1752889746746,6.19667168,176.47,176.46,0.03]
[1752889747126,11.86335723,176.47,176.46,0.03]
[1752889749181,11.86335723,176.47,176.45,1e-08]
[1752889749324,22.98135565,176.46,176.45,1e-08]
[1752889749731,5.66668555,176.47,176.45,1e-08]
[1752889750032,31.78667168,176.46,176.45,1e-08]
[1752889750467,28.89333584,176.46,176.45,1e-08]
[1752889751533,34.56034252,176.46,176.45,1e-08]
[1752889751731,8.56034252,176.46,176.45,0.71000001]
[1752889752852,5.66636446,176.48,176.45,0.71000001]
[1752889753037,2.89333584,176.5,176.45,3.60333585]
[1752889753243,8.55873723,176.51,176.46,3.60333584]
[1752889753444,2.89333584,176.5,176.47,0.71]
[1752889753642,2.89333584,176.51,176.47,0.71]
[1752889753830,2.89333584,176.5,176.47,0.71]
[1752889754149,2.89333584,176.5,176.48,0.71]
[1752889754350,2.89333584,176.51,176.49,0.71]
[1752889755570,2.89333584,176.5,176.49,0.71]
[1752889755958,8.55873723,176.51,176.49,0.71]
[1752889756169,2.89333584,176.5,176.49,0.71]
[1752889756332,2.89333584,176.5,176.47,0.71]
[1752889756658,2.89333584,176.5,176.46,2.89333584]
[1752889756659,2.89333584,176.5,176.48,0.71]
[1752889757258,5.6660434,176.49,176.48,0.71]
[1752889758475,8.55937924,176.49,176.46,0.71]
[1752889758636,2.89333584,176.48,176.46,0.71]
[1752889759146,5.66668555,176.47,176.45,1e-08]
[1752889759363,8.56002139,176.47,176.45,1e-08]
[1752889759956,8.56002139,176.47,176.45,0.71000001]
[1752889760860,5.66668555,176.47,176.46,0.71]
[1752889761646,5.6660434,176.49,176.46,0.71]
[1752889762044,8.55937924,176.49,176.46,0.71]
[1752889762753,5.66411781,176.55,176.48,2.89333584]
[1752889763062,2.89333584,176.54,176.5,2.89333584]
[1752889763359,2.89333584,176.54,176.51,0.71]
[1752889763544,2.89333584,176.54,176.49,2.89333584]
[1752889763744,2.89333584,176.54,176.52,0.71]
[1752889764130,5.66475953,176.53,176.52,0.71]
[1752889765359,8.55809537,176.53,176.5,0.71]
[1752889765664,2.89333584,176.52,176.48,4.55063584]
[1752889765865,2.89333584,176.51,176.48,2.3673]
[1752889766240,5.66572237,176.5,176.48,2.3673]
[1752889766438,8.55905821,176.5,176.45,2.89333585]
[1752889766641,8.55905821,176.5,176.46,0.71]
[1752889767058,8.55905821,176.5,176.47,0.71]
[1752889767260,8.55905821,176.5,176.46,2.89333584]
[1752889767443,8.55905821,176.5,176.48,0.71]
[1752889768667,8.55905821,176.5,176.46,3.60333584]
[1752889768873,8.55905821,176.5,176.47,0.71]
[1752889770453,8.55905821,176.5,176.46,2.89333584]
[1752889770644,8.55905821,176.5,176.47,0.71]
[1752889771168,2.89333584,176.48,176.45,0.71000001]
[1752889771349,2.89333584,176.47,176.45,1e-08]
[1752889772660,19.83002831,176.5,176.46,0.71]
[1752889772850,2.89333584,176.48,176.46,0.71]
[1752889773050,19.83002831,176.5,176.46,0.71]
[1752889773255,2.89333584,176.48,176.46,0.71]
[1752889773665,5.66668555,176.47,176.46,0.71]
[1752889777080,5.66572237,176.5,176.46,3.60333584]
[1752889777247,5.66572237,176.5,176.47,3.56333584]
[1752889777452,8.55905821,176.5,176.48,0.67]
[1752889778582,8.55905821,176.5,176.46,2.89333584]
[1752889778764,8.55905821,176.5,176.48,0.67]
[1752889780662,5.66572237,176.5,176.48,0.67]
[1752889780868,8.55905821,176.5,176.48,0.67]
[1752889781467,5.66572237,176.5,176.48,0.67]
[1752889781662,8.55905821,176.5,176.48,0.67]
[1752889782373,5.66572237,176.5,176.48,0.67]
[1752889782676,8.55905821,176.5,176.48,0.67]
[1752889786793,0.06,176.51,176.45,2.89333585]
[1752889786967,5.72548357,176.51,176.49,0.67]
[1752889787283,5.72548357,176.51,176.49,3.56333584]
[1752889787464,0.06,176.51,176.5,0.67]
[1752889787665,0.06,176.51,176.5,3.56333584]
[1752889788662,0.06,176.51,176.5,0.67]
[1752889791862,0.06,176.51,176.5,3.56333584]
[1752889801880,0.06,176.51,176.5,6.45667168]
[1752889802077,0.06,176.51,176.5,29.47365025]
[1752889803286,0.06,176.55,176.54,24.66778397]
[1752889803593,0.06,176.55,176.54,67.86756367]
[1752889803899,0.06,176.55,176.54,68.53756367]
[1752889804292,0.06,176.55,176.54,77.09533816]
[1752889808197,0.06,176.55,176.54,31.56866648]
[1752889808400,0.06,176.55,176.54,77.07533816]
[1752889815308,0.06,176.55,176.54,164.67533816]
[1752889815479,0.06,176.55,176.54,164.1088943]
[1752889822418,0.06,176.55,176.54,147.66801981]
[1752889822925,0.06,176.55,176.54,173.66801981]
[1752889823212,0.06,176.55,176.54,176.56135565]
[1752889823419,0.06,176.55,176.54,182.2257943]
[1752889823583,0.06,176.55,176.54,156.2257943]
[1752889824691,0.06,176.55,176.54,144.77468397]
[1752889824912,0.06,176.55,176.54,173.66801981]
[1752889827326,0.06,176.55,176.54,86.06801981]
[1752889827501,0.06,176.55,176.54,86.63446367]
[1752889828927,0.06,176.55,176.54,0.56644386]
[1752889829146,0.47,176.55,176.52,2.89333584]
[1752889829309,0.41,176.54,176.51,2.89333584]
[1752889829508,0.41,176.54,176.52,39.72]
[1752889830128,3.30333584,176.53,176.5,0.03]
[1752889830324,2.89333584,176.52,176.51,39.72]
[1752889830533,3.30333584,176.52,176.51,39.72]
[1752889831618,8.96841628,176.52,176.51,39.72]
[1752889835024,8.55841628,176.52,176.51,39.72]
[1752889835747,5.66508044,176.52,176.51,39.72]
[1752889836917,5.66480409,176.53,176.51,39.72]
[1752889837518,8.96813993,176.53,176.51,39.72]
[1752889838118,8.55813993,176.53,176.51,39.72]
[1752889839668,5.66480409,176.53,176.51,39.75]
[1752889839813,0.06,176.53,176.51,43.32333584]
[1752889840141,2.89333584,176.52,176.51,39.75]
[1752889840342,3.30333584,176.52,176.51,0.03]
[1752889840528,3.30333584,176.52,176.51,39.75]
[1752889841129,8.96841628,176.52,176.51,39.75]
[1752889846227,8.96841628,176.52,176.5,0.03]
[1752889846442,6.19667168,176.51,176.5,0.03]
[1752889847563,11.86207307,176.51,176.5,0.03]
[1752889848230,8.55873723,176.51,176.5,0.03]
[1752889849345,8.96873723,176.51,176.5,0.03]
[1752889851349,8.55873723,176.51,176.5,0.03]
[1752889851545,5.66540139,176.51,176.5,0.03]
[1752889852460,8.96873723,176.51,176.5,0.03]
[1752889853525,11.86207307,176.51,176.5,0.03]
[1752889853728,11.86207307,176.51,176.5,1e-08]
[1752889858243,28.64675704,176.51,176.5,1e-08]
[1752889859662,11.86207307,176.51,176.5,1e-08]
[1752889860429,68.38675704,176.51,176.5,1e-08]
[1752889861532,51.60207307,176.51,176.5,1e-08]
[1752889861741,8.55873723,176.51,176.5,1e-08]
[1752889861945,8.55873723,176.51,176.5,0.68000001]
[1752889861946,5.66540139,176.51,176.5,0.68000001]
[1752889862541,0.06,176.52,176.5,0.68000001]
[1752889862740,0.06,176.52,176.51,0.68]
[1752889863864,0.06,176.52,176.51,3.57333584]
[1752889867571,0.06,176.52,176.51,26.0234212]
[1752889872174,0.06,176.52,176.51,65.7434212]
[1752889876868,0.06,176.53,176.52,42.78468397]
[1752889877072,0.06,176.53,176.52,49.80786369]
[1752889877369,0.06,176.53,176.52,111.40786369]
[1752889878662,0.06,176.53,176.52,112.92566369]
[1752889878861,0.06,176.55,176.54,42.78468397]
[1752889879177,0.06,176.55,176.54,88.85779951]
[1752889879347,0.06,176.55,176.54,89.52779951]
[1752889881873,0.06,176.55,176.54,95.19223816]
[1752889889261,0.06,176.59,176.58,42.78468397]
[1752889889578,0.06,176.59,176.58,178.0198712]
[1752889889777,0.06,176.59,176.58,178.12355565]
[1752889891570,0.06,176.59,176.58,183.78671116]
[1752889896082,0.06,176.62,176.61,26.0]
[1752889896282,0.06,176.62,176.61,85.94423916]
[1752889896586,0.06,176.62,176.61,137.437575]
[1752889896786,0.06,176.62,176.61,176.57135565]
[1752889899201,0.06,176.62,176.61,182.23354918]
[1752889900104,0.06,176.64,176.62,16.78468397]
[1752889900282,0.06,176.64,176.62,111.43754294]
[1752889900673,0.06,176.64,176.63,62.95135565]
[1752889901175,0.06,176.64,176.63,63.51751088]
[1752889901375,0.06,176.64,176.63,69.17906327]
[1752889901573,0.06,176.64,176.63,125.17985011]
[1752889901778,0.06,176.64,176.63,124.61369488]
[1752889903203,0.06,176.65,176.64,16.78468397]
[1752889903406,0.06,176.67,176.64,16.78468397]
[1752889903407,0.06,176.67,176.66,16.78468397]
[1752889903607,0.06,176.68,176.66,147.5240789]
[1752889903796,0.06,176.68,176.67,20.37801981]
[1752889904005,0.06,176.68,176.67,76.36612747]
[1752889904909,0.06,176.68,176.67,76.93215452]
[1752889905113,0.06,176.68,176.67,82.59242508]
[1752889908007,0.06,176.72,176.7,26.0]
[1752889908205,0.06,176.72,176.71,85.92391874]
[1752889908508,0.06,176.72,176.71,88.81725458]
[1752889908806,0.06,176.72,176.71,89.51725458]
[1752889909307,0.06,176.72,176.71,95.17624388]
[1752889910320,0.06,176.72,176.71,92.28290804]
[1752889911410,0.06,176.72,176.71,89.3895722]
[1752889911595,0.06,176.72,176.71,91.56290804]
[1752889912204,0.06,176.72,176.71,92.26290804]
[1752889912836,0.06,176.72,176.71,95.15624388]
[1752889913625,0.06,176.72,176.71,182.75624388]
[1752889913927,0.06,176.72,176.71,176.40367327]
[1752889914095,0.06,176.72,176.71,182.19034495]
[1752889917095,0.06,176.72,176.71,183.82924495]
[1752889918425,0.06,176.72,176.71,141.27590911]
[1752889918727,0.06,176.72,176.71,91.69700911]
[1752889918926,0.06,176.72,176.71,92.26290804]
[1752889919134,0.06,176.72,176.71,91.56290804]
[1752889919504,0.06,176.72,176.71,92.26290804]
[1752889920361,0.06,176.72,176.71,17.3505829]
[1752889920519,0.47,176.72,176.71,59.33801981]
[1752889920726,0.47,176.72,176.71,85.33801981]
[1752889920903,0.06,176.72,176.71,85.33801981]
[1752889921098,0.06,176.72,176.71,56.44468397]
[1752889921329,0.47,176.72,176.71,59.33801981]
[1752889921541,0.06,176.72,176.71,60.03801981]
[1752889921715,0.06,176.72,176.71,65.69700911]
[1752889921910,0.06,176.72,176.71,64.99700911]
[1752889922316,0.06,176.72,176.71,65.69700911]
[1752889922514,0.06,176.72,176.71,64.99700911]
[1752889924447,0.06,176.72,176.71,65.69700911]
[1752889924737,0.06,176.72,176.71,152.59700911]
[1752889925314,0.06,176.72,176.71,64.99700911]
[1752889925522,0.06,176.72,176.71,65.56290804]
[1752889927122,0.06,176.72,176.71,59.90391874]
[1752889927765,0.06,176.72,176.71,20.24391874]
[1752889927938,0.47,176.72,176.71,59.33801981]
[1752889928757,0.47,176.72,176.71,39.66]
[1752889929350,3.36333584,176.72,176.71,39.66]
[1752889929943,6.12866908,176.72,176.71,39.66]
[1752889932356,9.02200492,176.72,176.71,39.66]
[1752889932651,6.12866908,176.72,176.71,39.66]
[1752889933522,9.02200492,176.72,176.71,39.66]
[1752889933844,6.12866908,176.72,176.71,39.66]
[1752889935444,0.06,176.72,176.71,42.55333584]
[1752889939128,4.62805164,176.74,176.71,42.55333584]
[1752889940832,7.52138748,176.74,176.71,39.66]
[1752889941747,4.62805164,176.74,176.69,55.9856277]
[1752889941955,2.89333584,176.71,176.69,55.9856277]
[1752889942264,2.89333584,176.71,176.7,39.66]
[1752889942429,18.77312349,176.74,176.7,39.66]
[1752889942625,2.89333584,176.73,176.7,39.66]
[1752889943057,7.52138748,176.74,176.7,42.55333584]
[1752889943254,2.89333584,176.73,176.7,39.66]
[1752889943635,2.89333584,176.72,176.7,39.66]
[1752889944167,5.6589893,176.71,176.7,39.66]
[1752889944957,8.55232514,176.71,176.7,39.66]
[1752889945638,5.6589893,176.71,176.7,39.66]
[1752889949658,19.80310059,176.74,176.7,39.66]
[1752889949862,2.95333584,176.72,176.7,39.66]
[1752889950272,0.06,176.72,176.7,39.66]
[1752889950565,5.6589893,176.71,176.7,39.66]
[1752889954736,0.06,176.72,176.7,39.66]
[1752889955051,1.45333584,176.72,176.7,39.66]
[1752889955750,19.80310059,176.74,176.71,0.71]
[1752889955751,8.55136458,176.74,176.71,0.71]
[1752889955952,5.65802874,176.74,176.72,39.66]
[1752889956151,5.65802874,176.74,176.72,40.38]
[1752889956351,5.65802874,176.74,176.72,39.66]
[1752889957466,8.55136458,176.74,176.72,39.66]
[1752889959070,5.65802874,176.74,176.72,39.66]
[1752889959645,5.65802874,176.74,176.72,40.38]
[1752889961175,5.65802874,176.74,176.72,39.66]
[1752889962072,8.55104446,176.75,176.72,40.38]
[1752889962472,5.65770862,176.75,176.72,39.66]
[1752889962660,5.71741155,176.76,176.73,3.61333584]
[1752889962847,5.71741155,176.76,176.74,40.38]
[1752889963046,5.71741155,176.76,176.75,0.72]
[1752889963643,0.06,176.76,176.75,0.72]
[1752889963856,0.06,176.76,176.75,3.61333584]
[1752889967967,0.1,176.77,176.75,23.29135565]
[1752889968176,0.1,176.77,176.76,60.03801981]
[1752889972979,0.1,176.77,176.76,66.2611472]
[1752889974554,0.1,176.77,176.76,69.15448304]
[1752889977883,0.1,176.77,176.76,66.2611472]
[1752889978371,0.1,176.77,176.76,69.15448304]
[1752889980495,0.06,176.8,176.79,26.0]
[1752889980693,0.06,176.8,176.79,87.40126266]
[1752889980899,0.06,176.8,176.79,90.2945985]
[1752889981075,0.06,176.8,176.79,91.0145985]
[1752889981270,0.06,176.8,176.79,96.67102703]
[1752889984509,0.06,176.8,176.79,97.17102703]
[1752889991377,0.06,176.8,176.79,51.76435535]
[1752889991585,0.06,176.8,176.79,97.17102703]
[1752889992794,0.06,176.8,176.79,184.77102703]
[1752889992994,0.06,176.8,176.79,184.20538418]
[1752890003906,0.06,176.81,176.8,22.44079256]
[1752890004212,0.06,176.81,176.8,29.50307509]
[1752890004578,0.06,176.81,176.8,117.10307509]
[1752890004809,0.06,176.81,176.8,116.53746424]
[1752890007580,0.12,176.81,176.8,104.38468397]
[1752890007796,0.12,176.81,176.8,146.87801981]
[1752890008003,0.06,176.81,176.8,149.77135565]
[1752890008990,0.06,176.81,176.8,143.98468397]
[1752890009192,0.06,176.81,176.8,146.87801981]
[1752890010596,0.12,176.81,176.8,59.27801981]
[1752890010796,0.12,176.81,176.8,39.6]
[1752890010996,0.12,176.81,176.79,3.39333584]
[1752890011194,0.06,176.81,176.8,39.6]
[1752890011882,0.12,176.81,176.8,39.6]
[1752890012490,0.06,176.81,176.8,39.6]
[1752890012719,0.06,176.81,176.8,42.49333584]
[1752890015617,0.12,176.81,176.8,39.6]
[1752890016725,0.06,176.81,176.8,59.27801981]
[1752890018495,0.06,176.81,176.8,42.49333584]
[1752890019504,0.06,176.81,176.8,43.18333584]
[1752890019893,0.06,176.81,176.8,42.49333584]
[1752890026218,0.06,176.81,176.8,59.96801981]
[1752890026402,0.06,176.81,176.8,39.6]
[1752890031933,0.06,176.81,176.8,43.18333584]
[1752890033326,0.06,176.81,176.8,39.6]
[1752890035618,0.06,176.81,176.8,43.18333584]
[1752890036935,0.06,176.81,176.8,42.13207329]
[1752890037341,0.06,176.81,176.8,39.6]
[1752890042140,0.06,176.81,176.8,41.44207329]
[1752890043542,0.06,176.81,176.8,42.13207329]
[1752890044521,0.06,176.81,176.8,41.44207329]
[1752890044932,0.06,176.81,176.8,39.6]
[1752890045541,0.06,176.81,176.8,41.44207329]
[1752890045724,0.06,176.81,176.8,42.13207329]
[1752890050053,0.06,176.81,176.8,41.44207329]
[1752890050547,0.06,176.81,176.8,42.12207329]
[1752890051051,0.06,176.81,176.8,41.44207329]
[1752890051550,0.06,176.81,176.8,42.12207329]
[1752890052938,0.06,176.81,176.8,41.44207329]
[1752890054137,0.06,176.81,176.8,42.12207329]
[1752890057242,0.06,176.81,176.8,40.28]
[1752890057443,0.06,176.81,176.8,42.12207329]
[1752890059662,0.06,176.81,176.8,42.15207329]
[1752890059857,0.06,176.81,176.8,40.31]
[1752890060062,0.06,176.81,176.8,42.15207329]
[1752890064758,0.06,176.81,176.8,40.31]
[1752890065065,0.06,176.81,176.8,0.03]
[1752890065265,0.06,176.81,176.8,39.61]
[1752890065646,0.06,176.81,176.8,40.29]
[1752890066058,0.06,176.81,176.8,42.13207329]
[1752890069973,0.06,176.81,176.8,49.50036645]
[1752890071856,0.06,176.81,176.8,42.13207329]
[1752890072060,0.06,176.81,176.8,40.29]
[1752890072261,0.06,176.81,176.8,42.13207329]
[1752890073982,0.06,176.81,176.8,40.29]
[1752890074297,0.06,176.81,176.8,42.13207329]
[1752890077873,0.06,176.81,176.8,42.63207329]
[1752890078078,0.06,176.81,176.8,42.13207329]
[1752890082290,0.06,176.81,176.8,2.55207329]
[1752890082488,0.06,176.81,176.8,42.13207329]
[1752890082996,0.06,176.81,176.8,42.63207329]
[1752890083992,0.06,176.81,176.8,50.00036645]
[1752890085296,0.06,176.81,176.8,42.63207329]
[1752890089995,0.06,176.81,176.8,40.79]
[1752890090207,0.06,176.81,176.8,39.61]
[1752890091503,0.12,176.81,176.8,39.61]
[1752890092797,0.06,176.81,176.8,39.61]
[1752890093980,5.71578869,176.81,176.8,39.61]
[1752890094902,0.06,176.81,176.8,39.61]
[1752890099605,0.06,176.81,176.8,0.03]
[1752890099786,0.12,176.81,176.8,0.03]
[1752890100100,0.12,176.81,176.8,39.59]
[1752890100699,0.06,176.81,176.8,42.13207329]
[1752890100892,0.06,176.81,176.8,41.43207329]
[1752890101600,0.06,176.81,176.8,42.13207329]
[1752890101792,0.06,176.81,176.8,40.29]
[1752890101985,0.06,176.81,176.8,42.13207329]
[1752890102605,0.06,176.81,176.8,39.59]
[1752890103017,0.06,176.81,176.8,49.50036645]
[1752890105029,0.06,176.81,176.8,42.13207329]
[1752890106639,0.06,176.81,176.8,0.03]
[1752890106797,0.06,176.81,176.8,39.59]
[1752890108414,0.06,176.81,176.8,40.27]
[1752890108609,0.06,176.81,176.8,42.11207329]
[1752890109926,0.06,176.81,176.8,39.59]
[1752890110097,0.06,176.81,176.8,41.43207329]
[1752890110422,0.06,176.81,176.8,39.59]
[1752890110621,0.06,176.81,176.8,40.27]
[1752890111426,0.06,176.81,176.8,42.11207329]
[1752890122750,0.06,176.81,176.8,49.48036645]
[1752890124137,0.06,176.81,176.8,55.13647504]
[1752890125132,0.06,176.81,176.8,45.92610859]
[1752890125329,0.06,176.81,176.8,55.13647504]
[1752890126352,0.06,176.81,176.8,49.48036645]
[1752890127829,0.06,176.81,176.8,39.57]
[1752890128024,0.06,176.81,176.8,1.87207329]
[1752890128218,0.06,176.81,176.8,41.41207329]
[1752890129138,0.06,176.81,176.8,42.09207329]
[1752890132859,0.06,176.81,176.8,41.41207329]
[1752890135232,0.06,176.81,176.8,42.09207329]
[1752890139546,0.06,176.81,176.8,49.46036645]
[1752890139851,0.06,176.81,176.8,55.11647504]
[1752890140455,0.06,176.81,176.8,42.09207329]
[1752890141868,0.06,176.81,176.8,40.25]
[1752890142164,0.06,176.81,176.8,0.03]
[1752890142354,0.06,176.81,176.8,41.39207329]
[1752890143139,0.06,176.81,176.8,42.09207329]
[1752890145061,0.06,176.81,176.8,41.39207329]
[1752890146039,0.06,176.81,176.8,42.09207329]
[1752890149743,0.06,176.81,176.8,42.14474206]
[1752890149938,0.06,176.81,176.8,72.16450286]
[1752890150343,0.06,176.81,176.8,58.92942603]